[Event "Open International Liffre 2019"]
[Site "Liffre"]
[Date "2019.10.20"]
[Round "3.3"]
[White "Konguvel, Ponnuswamy"]
[Black "Bailet, Pierre"]
[Result "1/2-1/2"]
[TimeControl "1h30 + 30s/coup + 30 min /40 Coup"]
[WhiteTitle "IM"]
[BlackTitle "IM"]
[WhiteElo "2370"]
[BlackElo "2493"]

1. e4 {[%clk 01:30:52]} {[%emt 00:00:06]} c5 {[%clk 01:30:16]} {[%emt
00:00:45]} 2. Nf3 {[%clk 01:31:13]} {[%emt 00:00:09]} Nc6 {[%clk 01:30:31]}
{[%emt 00:00:15]} 3. d4 {[%clk 01:31:32]} {[%emt 00:00:12]} cxd4 {[%clk
01:30:49]} {[%emt 00:00:11]} 4. Nxd4 {[%clk 01:31:58]} {[%emt 00:00:05]} Nf6
{[%clk 01:30:17]} {[%emt 00:01:01]} 5. Nc3 {[%clk 01:32:22]} {[%emt 00:00:06]}
e5 {[%clk 01:30:37]} {[%emt 00:00:10]} 6. Ndb5 {[%clk 01:32:36]} {[%emt
00:00:17]} d6 {[%clk 01:30:58]} {[%emt 00:00:08]} 7. Bg5 {[%clk 01:32:52]}
{[%emt 00:00:15]} a6 {[%clk 01:31:17]} {[%emt 00:00:11]} 8. Na3 {[%clk
01:33:17]} {[%emt 00:00:05]} b5 {[%clk 01:31:34]} {[%emt 00:00:12]} 9. Nd5
{[%clk 01:33:25]} {[%emt 00:00:22]} Be7 {[%clk 01:31:48]} {[%emt 00:00:15]} 10.
Bxf6 {[%clk 01:33:44]} {[%emt 00:00:12]} Bxf6 {[%clk 01:32:10]} {[%emt
00:00:08]} 11. c3 {[%clk 01:31:33]} {[%emt 00:02:42]} O-O {[%clk 01:30:43]}
{[%emt 00:01:56]} 12. Nc2 {[%clk 01:31:58]} {[%emt 00:00:06]} Rb8 {[%clk
01:31:02]} {[%emt 00:00:10]} 13. h4 {[%clk 01:18:25]} {[%emt 00:14:03]} Be7
{[%clk 01:29:07]} {[%emt 00:02:24]} 14. Nce3 {[%clk 01:11:43]} {[%emt
00:07:14]} Be6 {[%clk 01:28:49]} {[%emt 00:00:47]} 15. Qf3 {[%clk 01:09:11]}
{[%emt 00:03:02]} Qd7 {[%clk 01:27:13]} {[%emt 00:02:06]} 16. Bd3 {[%clk
01:09:15]} {[%emt 00:00:27]} Bd8 {[%clk 01:25:07]} {[%emt 00:02:34]} 17. g4
{[%clk 00:58:58]} {[%emt 00:10:48]} Bb6 {[%clk 01:03:25]} {[%emt 00:22:11]} 18.
Nf5 {[%clk 00:46:42]} {[%emt 00:12:47]} Bxd5 {[%clk 01:00:09]} {[%emt
00:03:46]} 19. exd5 {[%clk 00:47:08]} {[%emt 00:00:04]} Ne7 {[%clk 01:00:26]}
{[%emt 00:00:12]} 20. Ng3 {[%clk 00:41:43]} {[%emt 00:05:56]} f5 {[%clk
00:32:54]} {[%emt 00:28:02]} 21. gxf5 {[%clk 00:41:15]} {[%emt 00:00:59]} Kh8
{[%clk 00:33:07]} {[%emt 00:00:16]} 22. h5 {[%clk 00:35:14]} {[%emt 00:06:30]}
Ng8 {[%clk 00:31:18]} {[%emt 00:02:19]} 23. O-O-O {[%clk 00:35:08]} {[%emt
00:00:37]} Bd8 {[%clk 00:27:39]} {[%emt 00:04:09]} 24. Kb1 {[%clk 00:34:19]}
{[%emt 00:01:19]} Bg5 {[%clk 00:24:44]} {[%emt 00:03:25]} 25. f6 {[%clk
00:25:21]} {[%emt 02:03:20]} Nxf6 {[%clk 00:24:02]} 26. Qf5 {[%clk 00:22:27]}
Qxf5 {[%clk 00:23:20]} 27. Bxf5 {[%clk 00:22:53]} Bf4 {[%clk 00:16:59]} 1/2-1/2

[ePGN "0.1;DGT LiveChess/2.1"]

[Event "Open International Liffre 2019"]
[Site "Liffre"]
[Date "2019.10.20"]
[Round "3.4"]
[White "Enchev, Ivajlo"]
[Black "Yche, Michel"]
[Result "1-0"]
[TimeControl "1h30 + 30s/coup + 30 min /40 Coup"]
[WhiteTitle "GM"]
[WhiteElo "2488"]
[BlackElo "1951"]

1. d4 {[%clk 01:30:57]} {[%emt 00:00:02]} Nf6 {[%clk 01:27:14]} {[%emt
00:03:48]} 2. c4 {[%clk 01:31:01]} {[%emt 00:00:25]} e5 {[%clk 01:27:30]}
{[%emt 00:00:14]} 3. dxe5 {[%clk 01:31:13]} {[%emt 00:00:18]} Ng4 {[%clk
01:27:47]} {[%emt 00:00:13]} 4. Bf4 {[%clk 01:31:38]} {[%emt 00:00:05]} Nc6
{[%clk 01:27:42]} {[%emt 00:00:36]} 5. Nf3 {[%clk 01:31:57]} {[%emt 00:00:11]}
Bb4+ {[%clk 01:27:14]} {[%emt 00:00:58]} 6. Nc3 {[%clk 01:31:38]} {[%emt
00:00:48]} Qe7 {[%clk 01:26:39]} {[%emt 00:01:06]} 7. Qd5 {[%clk 01:31:42]}
{[%emt 00:00:24]} Bxc3+ {[%clk 01:24:20]} {[%emt 00:02:51]} 8. bxc3 {[%clk
01:32:10]} f6 {[%clk 01:24:33]} {[%emt 00:00:17]} 9. exf6 {[%clk 01:32:19]}
{[%emt 00:00:21]} Nxf6 {[%clk 01:24:50]} {[%emt 00:00:13]} 10. Qd3 {[%clk
01:31:50]} {[%emt 00:00:59]} d6 {[%clk 01:24:14]} {[%emt 00:01:07]} 11. g3
{[%clk 01:31:26]} {[%emt 00:00:53]} Ne4 {[%clk 01:21:41]} {[%emt 00:03:04]} 12.
Bg2 {[%clk 01:29:09]} {[%emt 00:02:46]} Nc5 {[%clk 01:20:02]} {[%emt 00:02:10]}
13. Qe3 {[%clk 01:24:41]} {[%emt 00:04:56]} Qxe3 {[%clk 01:10:11]} {[%emt
00:10:22]} 14. Bxe3 {[%clk 01:25:07]} {[%emt 00:00:05]} Na5 {[%clk 01:09:25]}
{[%emt 00:01:16]} 15. Bxc5 {[%clk 01:23:06]} {[%emt 00:02:30]} dxc5 {[%clk
01:09:35]} {[%emt 00:00:20]} 16. Nd2 {[%clk 01:22:44]} {[%emt 00:00:52]} c6
{[%clk 01:09:04]} {[%emt 00:01:01]} 17. Nb3 {[%clk 01:22:29]} {[%emt 00:00:45]}
Nxc4 {[%clk 01:08:20]} {[%emt 00:01:15]} 18. Nxc5 {[%clk 01:22:51]} {[%emt
00:00:07]} O-O {[%clk 01:08:16]} {[%emt 00:00:34]} 19. Rb1 {[%clk 01:21:56]}
{[%emt 00:01:24]} Na5 {[%clk 01:01:47]} {[%emt 00:07:00]} 20. O-O {[%clk
01:21:30]} {[%emt 00:00:55]} Rf5 {[%clk 00:59:36]} {[%emt 00:02:41]} 21. Nd3
{[%clk 01:20:34]} {[%emt 00:01:27]} Rf7 {[%clk 00:49:03]} {[%emt 00:11:03]} 22.
Ne5 {[%clk 01:17:32]} {[%emt 00:03:31]} Rc7 {[%clk 00:46:43]} {[%emt 00:02:51]}
23. Rfd1 {[%clk 01:15:33]} {[%emt 00:02:28]} Be6 {[%clk 00:46:15]} {[%emt
00:00:58]} 24. Rb4 {[%clk 01:15:44]} {[%emt 00:00:20]} Kf8 {[%clk 00:36:43]}
{[%emt 00:10:02]} 25. Ra4 {[%clk 01:14:49]} {[%emt 00:01:24]} b6 {[%clk
00:36:30]} {[%emt 00:00:44]} 26. Rh4 {[%clk 01:13:59]} {[%emt 00:01:19]} h6
{[%clk 00:32:30]} {[%emt 00:04:31]} 27. c4 {[%clk 01:13:55]} {[%emt 00:00:33]}
Ke7 {[%clk 00:30:48]} {[%emt 00:02:12]} 28. Re4 {[%clk 01:12:46]} {[%emt
00:01:39]} Re8 {[%clk 00:27:34]} {[%emt 00:03:45]} 29. Bf3 {[%clk 01:11:33]}
{[%emt 00:01:42]} Kf6 {[%clk 00:13:29]} {[%emt 00:14:36]} 30. Rd6 {[%clk
01:10:51]} {[%emt 00:01:11]} Kf5 {[%clk 00:09:15]} {[%emt 00:04:46]} 31. Ng4
{[%clk 01:09:05]} {[%emt 00:02:15]} Nxc4 {[%clk 00:06:39]} {[%emt 00:03:06]} 32.
Rf4+ {[%clk 01:09:22]} {[%emt 00:00:11]} Kg6 {[%clk 00:05:04]} {[%emt
00:02:07]} 33. Rxc4 {[%clk 01:09:14]} {[%emt 00:00:38]} 1-0

[ePGN "0.1;DGT LiveChess/2.1"]

[Event "Open International Liffre 2019"]
[Site "Liffre"]
[Date "2019.10.21"]
[Round "4.1"]
[White "Satyapragyan, Swayangsu"]
[Black "Nikolov, Momchil"]
[Result "1/2-1/2"]
[TimeControl "1h30 + 30s/coup + 30 min /40 Coup"]
[WhiteTitle "IM"]
[BlackTitle "GM"]
[WhiteElo "2395"]
[BlackElo "2557"]

1. e4 {[%clk 01:30:29]} {[%emt 00:00:31]} e5 {[%clk 01:30:52]} {[%emt
00:00:08]} 2. Nf3 {[%clk 01:30:53]} {[%emt 00:00:06]} Nc6 {[%clk 01:31:15]}
{[%emt 00:00:07]} 3. Bb5 {[%clk 01:30:59]} {[%emt 00:00:24]} a6 {[%clk
01:31:37]} {[%emt 00:00:08]} 4. Ba4 {[%clk 01:31:26]} {[%emt 00:00:03]} Nf6
{[%clk 01:31:54]} {[%emt 00:00:13]} 5. O-O {[%clk 01:31:19]} {[%emt 00:00:37]}
Nxe4 {[%clk 01:32:10]} {[%emt 00:00:13]} 6. d4 {[%clk 01:31:45]} {[%emt
00:00:05]} b5 {[%clk 01:32:28]} {[%emt 00:00:11]} 7. Bb3 {[%clk 01:32:11]}
{[%emt 00:00:05]} d5 {[%clk 01:32:44]} {[%emt 00:00:14]} 8. dxe5 {[%clk
01:32:33]} {[%emt 00:00:08]} Be6 {[%clk 01:33:03]} {[%emt 00:00:11]} 9. Qe2
{[%clk 01:30:56]} {[%emt 00:02:07]} Be7 {[%clk 01:32:06]} {[%emt 00:01:27]} 10.
Rd1 {[%clk 01:29:13]} {[%emt 00:02:13]} Na5 {[%clk 01:31:14]} {[%emt 00:01:22]}
11. Nbd2 {[%clk 01:17:40]} {[%emt 00:12:03]} Nc5 {[%clk 01:28:57]} {[%emt
00:02:46]} 12. c3 {[%clk 01:10:59]} {[%emt 00:07:12]} Ncxb3 {[%emt 00:02:01]}
13. Nxb3 {[%clk 01:09:58]} {[%emt 00:00:17]} c5 {[%clk 01:28:28]} {[%emt
00:00:41]} 14. Nxa5 {[%emt 00:02:10]} Qxa5 {[%clk 01:28:49]} {[%emt 00:00:03]}
15. Bg5 {[%clk 01:07:47]} {[%emt 00:01:08]} Bf8 {[%emt 00:14:31]} 16. Be3
{[%emt 00:03:53]} Be7 {[%emt 00:03:47]} 17. Bg5 {[%emt 00:00:29]} Bf8 {[%clk
01:24:57]} 18. Be3 {[%emt 00:02:17]} Be7 {[%emt 00:01:22]} 19. Bg5 {[%emt
00:00:07]} Bf8 {[%clk 01:24:48]} {[%emt 00:00:02]} 20. Be3 {[%clk 00:50:13]}
{[%emt 00:00:07]} Be7 {[%clk 01:25:10]} {[%emt 00:00:07]} 21. Bg5 {[%clk
00:50:39]} {[%emt 00:00:04]} Bf8 1/2-1/2

[ePGN "0.1;DGT LiveChess/2.1"]

[Event "Open International Liffre 2019"]
[Site "Liffre"]
[Date "2019.10.21"]
[Round "4.2"]
[White "Viani Antonio Dcunha"]
[Black "Enchev, Ivajlo"]
[Result "1/2-1/2"]
[TimeControl "1h30 + 30s/coup + 30 min /40 Coup"]
[WhiteTitle "IM"]
[BlackTitle "GM"]
[WhiteElo "2380"]
[BlackElo "2488"]

1. e4 {[%clk 01:30:22]} {[%emt 00:00:37]} e5 {[%clk 01:30:43]} {[%emt
00:00:18]} 2. Nf3 {[%clk 01:30:42]} {[%emt 00:00:10]} Nc6 {[%clk 01:31:04]}
{[%emt 00:00:08]} 3. Bc4 {[%clk 01:30:55]} {[%emt 00:00:18]} Bc5 {[%clk
01:30:59]} {[%emt 00:00:35]} 4. O-O {[%clk 01:31:03]} {[%emt 00:00:23]} Nf6
{[%clk 01:29:32]} {[%emt 00:01:56]} 5. d3 {[%clk 01:31:19]} {[%emt 00:00:14]}
d6 {[%clk 01:29:51]} {[%emt 00:00:11]} 6. c3 {[%clk 01:31:32]} {[%emt
00:00:16]} a5 {[%clk 01:29:48]} {[%emt 00:00:35]} 7. a4 {[%clk 01:28:09]}
{[%emt 00:03:52]} O-O {[%clk 01:29:54]} {[%emt 00:00:23]} 8. h3 {[%clk
01:27:35]} {[%emt 00:01:05]} h6 {[%clk 01:30:19]} {[%emt 00:00:05]} 9. Re1
{[%clk 01:27:13]} {[%emt 00:00:52]} Be6 {[%clk 01:29:22]} {[%emt 00:01:27]} 10.
Nbd2 {[%clk 01:23:19]} {[%emt 00:04:24]} Re8 {[%clk 01:25:16]} {[%emt
00:04:36]} 11. Bb5 {[%clk 01:20:00]} {[%emt 00:03:49]} Bd7 {[%clk 01:23:35]}
{[%emt 00:02:11]} 12. Bc4 {[%clk 01:16:01]} {[%emt 00:04:29]} Be6 {[%clk
01:19:00]} {[%emt 00:05:05]} 13. Bb5 {[%clk 01:15:52]} {[%emt 00:00:40]} Bd7
{[%clk 01:18:27]} {[%emt 00:01:03]} 14. Nf1 {[%clk 01:10:25]} {[%emt 00:05:57]}
Ne7 {[%clk 01:15:37]} {[%emt 00:03:20]} 15. Bc4 {[%clk 01:06:57]} {[%emt
00:03:57]} c6 {[%clk 01:12:32]} {[%emt 00:03:35]} 16. Be3 {[%clk 00:58:54]}
{[%emt 00:08:33]} Qb6 {[%clk 01:08:23]} {[%emt 00:04:39]} 17. Bxc5 {[%clk
00:56:48]} {[%emt 00:02:37]} Qxc5 {[%clk 01:08:18]} {[%emt 00:00:35]} 18. Qb3
{[%clk 00:50:45]} {[%emt 00:06:33]} d5 {[%clk 01:05:16]} {[%emt 00:03:31]} 19.
exd5 {[%clk 00:51:00]} {[%emt 00:00:15]} b5 {[%clk 00:58:54]} {[%emt 00:06:51]}
20. axb5 {[%clk 00:43:31]} {[%emt 00:08:00]} cxb5 {[%clk 00:58:31]} {[%emt
00:00:53]} 21. Nxe5 {[%clk 00:42:04]} {[%emt 00:01:57]} bxc4 {[%clk 00:57:04]}
{[%emt 00:01:57]} 22. Nxd7 {[%clk 00:41:38]} {[%emt 00:00:56]} Nxd7 {[%clk
00:56:45]} {[%emt 00:00:49]} 23. Qxc4 {[%clk 00:41:36]} {[%emt 00:00:32]} Qd6
{[%clk 00:51:09]} {[%emt 00:06:05]} 24. Ne3 {[%clk 00:34:23]} {[%emt 00:07:44]}
Nf6 {[%clk 00:48:30]} {[%emt 00:03:08]} 25. Qb5 {[%clk 00:25:24]} {[%emt
00:09:30]} Reb8 {[%clk 00:35:01]} {[%emt 00:13:59]} 26. Nc4 {[%clk 00:23:59]}
{[%emt 00:01:55]} Qxd5 {[%clk 00:31:10]} {[%emt 00:04:20]} 27. Qxd5 {[%clk
00:23:50]} {[%emt 00:00:39]} Nexd5 {[%clk 00:31:27]} {[%emt 00:00:14]} 28. Ra4
{[%clk 00:22:36]} {[%emt 00:01:45]} Nb6 {[%clk 00:28:16]} {[%emt 00:03:40]} 29.
Rxa5 {[%clk 00:21:57]} {[%emt 00:01:09]} Rxa5 {[%clk 00:28:33]} {[%emt
00:00:13]} 30. Nxa5 {[%clk 00:22:21]} {[%emt 00:00:06]} Na4 {[%clk 00:28:57]}
{[%emt 00:00:06]} 31. Nc4 {[%clk 00:21:38]} {[%emt 00:01:13]} Nd7 {[%clk
00:25:11]} {[%emt 00:04:17]} 32. Re2 {[%clk 00:20:00]} {[%emt 00:02:07]} Ndc5
{[%clk 00:17:23]} {[%emt 00:08:18]} 33. Rd2 {[%clk 00:19:01]} {[%emt 00:01:28]}
Nb3 {[%clk 00:13:05]} {[%emt 00:04:48]} 34. Rd1 {[%clk 00:15:41]} {[%emt
00:03:51]} Nbc5 {[%clk 00:11:05]} {[%emt 00:02:30]} 35. Rd2 {[%clk 00:16:00]}
{[%emt 00:00:11]} Nb6 {[%clk 00:06:07]} {[%emt 00:05:28]} 36. Nxb6 {[%clk
00:10:59]} {[%emt 00:05:31]} Rxb6 {[%clk 00:06:35]} 37. b4 {[%clk 00:11:15]}
{[%emt 00:00:16]} Ne6 {[%clk 00:06:42]} {[%emt 00:00:23]} 38. Kf1 {[%clk
00:06:48]} {[%emt 00:04:57]} Rc6 {[%clk 00:06:27]} {[%emt 00:00:46]} 39. c4
{[%clk 00:06:56]} {[%emt 00:00:21]} Nd4 {[%clk 00:04:27]} {[%emt 00:02:30]} 40.
b5 {[%clk 00:06:15]} {[%emt 00:01:12]} Rc8 {[%clk 00:03:07]} {[%emt 00:01:50]}
41. Ra2 {[%clk 00:02:23]} {[%emt 00:04:21]} Kf8 {[%clk 00:01:45]} {[%emt
00:01:52]} 42. Ke1 {[%clk 00:22:19]} {[%emt 00:10:34]} Ke7 {[%clk 00:31:30]}
{[%emt 00:00:45]} 43. Ra7+ {[%clk 00:21:33]} {[%emt 00:01:16]} Ke6 {[%clk
00:31:49]} {[%emt 00:00:12]} 44. Kd2 {[%clk 00:21:11]} {[%emt 00:00:51]} Rb8
{[%clk 00:30:40]} {[%emt 00:01:39]} 45. Kc3 {[%clk 00:19:35]} {[%emt 00:02:06]}
Nxb5+ {[%clk 00:29:54]} {[%emt 00:01:16]} 46. cxb5 {[%clk 00:19:58]} {[%emt
00:00:07]} Rxb5 {[%clk 00:30:22]} {[%emt 00:00:02]} 47. Ra6+ {[%clk 00:19:56]}
{[%emt 00:00:32]} Kd5 {[%clk 00:30:11]} {[%emt 00:00:39]} 48. Ra7 {[%clk
00:18:47]} {[%emt 00:01:40]} Ke6 {[%clk 00:30:38]} {[%emt 00:00:04]} 49. Kd4
{[%clk 00:18:45]} {[%emt 00:00:33]} Rb4+ {[%clk 00:29:55]} {[%emt 00:01:12]} 50.
Ke3 {[%clk 00:19:00]} {[%emt 00:00:14]} h5 {[%clk 00:29:44]} {[%emt 00:00:41]}
51. Ra6+ {[%clk 00:19:13]} {[%emt 00:00:18]} Ke7 {[%clk 00:30:07]} {[%emt
00:00:06]} 52. Rc6 {[%clk 00:19:00]} {[%emt 00:00:44]} g6 {[%clk 00:30:03]}
{[%emt 00:00:33]} 53. Rc4 {[%clk 00:18:53]} {[%emt 00:00:38]} Rb2 {[%clk
00:30:22]} {[%emt 00:00:11]} 54. h4 {[%clk 00:19:07]} {[%emt 00:00:16]} Ke6
{[%clk 00:30:37]} {[%emt 00:00:15]} 55. g3 {[%clk 00:19:21]} {[%emt 00:00:15]}
Ra2 {[%clk 00:30:52]} {[%emt 00:00:15]} 56. Rb4 {[%clk 00:19:21]} {[%emt
00:00:31]} Ra3 {[%clk 00:30:12]} {[%emt 00:01:10]} 57. f3 {[%clk 00:19:17]}
{[%emt 00:00:34]} Ra1 {[%clk 00:29:37]} {[%emt 00:01:05]} 58. Re4+ {[%clk
00:18:44]} {[%emt 00:01:03]} Kd6 {[%clk 00:28:40]} {[%emt 00:01:27]} 59. Kf4
{[%clk 00:17:20]} {[%emt 00:01:54]} Ra5 {[%clk 00:27:23]} {[%emt 00:01:46]} 60.
g4 {[%clk 00:15:21]} {[%emt 00:02:30]} Rd5 {[%clk 00:27:07]} {[%emt 00:00:45]}
61. Ke3 {[%clk 00:14:38]} {[%emt 00:01:14]} Ra5 {[%clk 00:27:09]} {[%emt
00:00:27]} 62. Re8 {[%clk 00:14:21]} {[%emt 00:00:47]} Kd7 {[%clk 00:24:48]}
{[%emt 00:02:51]} 63. Rh8 {[%clk 00:13:46]} {[%emt 00:01:05]} hxg4 {[%clk
00:24:08]} {[%emt 00:01:11]} 64. fxg4 {[%clk 00:14:05]} {[%emt 00:00:11]} Ke7
{[%clk 00:24:27]} {[%emt 00:00:11]} 65. h5 {[%clk 00:07:23]} {[%emt 00:07:12]}
gxh5 {[%clk 00:24:22]} {[%emt 00:00:35]} 66. gxh5 {[%clk 00:06:35]} {[%emt
00:01:18]} Kf6 {[%clk 00:23:28]} {[%emt 00:01:24]} 67. h6 {[%clk 00:06:54]}
{[%emt 00:00:11]} Rh5 {[%clk 00:22:35]} {[%emt 00:01:22]} 68. Ke4 {[%clk
00:06:36]} {[%emt 00:00:49]} Rh4+ {[%clk 00:16:39]} {[%emt 00:06:26]} 69. Kd5
{[%clk 00:06:12]} {[%emt 00:00:54]} Rh5+ {[%clk 00:17:07]} 70. Kc4 {[%clk
00:05:33]} {[%emt 00:01:10]} Kg6 {[%clk 00:15:42]} {[%emt 00:01:55]} 71. d4
{[%clk 00:05:00]} {[%emt 00:01:04]} Kf6 {[%clk 00:10:58]} {[%emt 00:05:14]} 72.
Ra8 {[%clk 00:01:43]} {[%emt 00:03:47]} Kg5 {[%clk 00:09:53]} {[%emt 00:01:36]}
73. Ra6 {[%clk 00:01:08]} {[%emt 00:01:05]} f6 {[%clk 00:09:55]} {[%emt
00:00:28]} 74. d5 {[%clk 00:01:25]} {[%emt 00:00:12]} Rxh6 {[%clk 00:10:14]}
{[%emt 00:00:11]} 75. d6 {[%clk 00:01:41]} {[%emt 00:00:14]} Rh7 {[%clk
00:08:55]} {[%emt 00:01:48]} 76. Kd5 {[%clk 00:01:58]} {[%emt 00:00:13]} f5
{[%clk 00:08:57]} {[%emt 00:00:28]} 77. Ke5 {[%clk 00:02:00]} {[%emt 00:00:29]}
f4 {[%clk 00:07:08]} {[%emt 00:02:19]} 78. Ra1 {[%clk 00:01:45]} {[%emt
00:00:44]} Rf7 {[%clk 00:06:14]} {[%emt 00:01:25]} 79. Ke6 {[%clk 00:01:03]}
{[%emt 00:01:12]} Rf8 {[%clk 00:06:12]} {[%emt 00:00:32]} 80. Ke7 {[%clk
00:00:47]} {[%emt 00:00:46]} Rb8 {[%clk 00:06:30]} {[%emt 00:00:12]} 81. Rg1+
{[%clk 00:00:42]} {[%emt 00:00:35]} Kh4 {[%clk 00:06:31]} {[%emt 00:00:28]} 82.
d7 {[%clk 00:01:04]} {[%emt 00:00:09]} f3 {[%clk 00:06:50]} {[%emt 00:00:11]}
83. d8=Q {[%clk 00:01:27]} {[%emt 00:00:06]} Rxd8 {[%clk 00:07:16]} {[%emt
00:00:04]} 84. Kxd8 {[%clk 00:01:52]} {[%emt 00:00:06]} 1/2-1/2

[ePGN "0.1;DGT LiveChess/2.1"]